[Event "Titled Tuesday Blitz January 03 Late 2023"]
[White "Suvorov, Luca"]
[Black "Zakarian, David"]
[WhiteFideId "12977071"]
[BlackFideId "13301276"]
[WhiteElo "2310"]
[BlackElo "2306"]
[Result "1-0"]
[Round "03"]
[TimeControl "180+2"]
[Date "2023.01.03"]
[WhiteClock "0:00:16"]
[BlackClock "0:01:07"]

1. d4 {[%clk 0:03:00]}  Nf6 {[%clk 0:02:59]} 2. c4 {[%clk 0:03:01]}  e6 {[%clk 0:03:00]} 3. Nf3 {[%clk 0:02:58]}  b6 {[%clk 0:03:00]} 4. a3 {[%clk 0:02:53]}  Ne4 {[%clk 0:02:59]} 5. Nfd2 {[%clk 0:02:48]}  Nxd2 {[%clk 0:02:55]} 6. Bxd2 {[%clk 0:02:31]}  Bb7 {[%clk 0:02:55]} 7. f3 {[%clk 0:02:32]}  d5 {[%clk 0:02:55]} 8. cxd5 {[%clk 0:02:20]}  exd5 {[%clk 0:02:55]} 9. Nc3 {[%clk 0:02:20]}  Qh4+ {[%clk 0:02:54]} 10. g3 {[%clk 0:02:18]}  Qxd4 {[%clk 0:02:54]} 11. Bf4 {[%clk 0:02:16]}  Qxd1+ {[%clk 0:02:52]} 12. Rxd1 {[%clk 0:02:17]}  c6 {[%clk 0:02:52]} 13. e4 {[%clk 0:02:13]}  dxe4 {[%clk 0:02:47]} 14. Nxe4 {[%clk 0:02:14]}  Nd7 {[%clk 0:02:37]} 15. Rxd7 {[%clk 0:01:46]}  Kxd7 {[%clk 0:02:37]} 16. Bh3+ {[%clk 0:01:46]}  Ke8 {[%clk 0:02:33]} 17. Kf2 {[%clk 0:01:41]}  f6 {[%clk 0:02:27]} 18. Re1 {[%clk 0:00:38]}  Kf7 {[%clk 0:02:25]} 19. Rd1 {[%clk 0:00:39]}  Bc8 {[%clk 0:02:12]} 20. Bxc8 {[%clk 0:00:39]}  Rxc8 {[%clk 0:02:13]} 21. Rd7+ {[%clk 0:00:39]}  Kg8 {[%clk 0:02:12]} 22. Rxa7 {[%clk 0:00:39]}  f5 {[%clk 0:02:06]} 23. Ng5 {[%clk 0:00:36]}  Bc5+ {[%clk 0:02:05]} 24. Kg2 {[%clk 0:00:36]}  Re8 {[%clk 0:01:58]} 25. Nf7 {[%clk 0:00:33]}  Re2+ {[%clk 0:01:43]} 26. Kf1 {[%clk 0:00:34]}  Rxb2 {[%clk 0:01:42]} 27. Nxh8 {[%clk 0:00:34]}  Rf2+ {[%clk 0:01:14]} 28. Ke1 {[%clk 0:00:33]}  g5 {[%clk 0:01:15]} 29. Ra8+ {[%clk 0:00:15]}  Kg7 {[%clk 0:01:15]} 30. Be5+ {[%clk 0:00:15]}  Kh6 {[%clk 0:01:15]} 31. Rg8 {[%clk 0:00:16]}  Rxf3 {[%clk 0:01:09]} 32. Nf7+ {[%clk 0:00:15]}  Kh5 {[%clk 0:01:07]} 33. Rxg5# {[%clk 0:00:16]} 1-0


[Site "https://www.chess.com"]

[Event "Titled Tuesday Blitz January 03 Late 2023"]
[White "Adewumi, Tanitoluwa"]
[Black "Sailer, Mike"]
[WhiteFideId "30966396"]
[BlackFideId "2012901"]
[WhiteElo "2283"]
[BlackElo "2109"]
[Result "1-0"]
[Round "03"]
[TimeControl "180+2"]
[Date "2023.01.03"]
[WhiteClock "0:00:10"]
[BlackClock "0:00:13"]

1. e4 {[%clk 0:03:00]}  d5 {[%clk 0:02:59]} 2. exd5 {[%clk 0:02:57]}  Qxd5 {[%clk 0:03:00]} 3. Nc3 {[%clk 0:02:53]}  Qd6 {[%clk 0:03:01]} 4. d4 {[%clk 0:02:52]}  Nf6 {[%clk 0:02:59]} 5. Nf3 {[%clk 0:02:09]}  c6 {[%clk 0:02:56]} 6. Ne5 {[%clk 0:02:04]}  Nbd7 {[%clk 0:02:54]} 7. Bf4 {[%clk 0:02:00]}  Qb4 {[%clk 0:02:30]} 8. a3 {[%clk 0:01:16]}  Qa5 {[%clk 0:02:22]} 9. Bc4 {[%clk 0:01:07]}  e6 {[%clk 0:02:15]} 10. O-O {[%clk 0:01:04]}  Nxe5 {[%clk 0:02:08]} 11. Bxe5 {[%clk 0:01:04]}  Be7 {[%clk 0:02:06]} 12. Qf3 {[%clk 0:01:03]}  O-O {[%clk 0:02:05]} 13. Bd3 {[%clk 0:01:02]}  c5 {[%clk 0:01:27]} 14. dxc5 {[%clk 0:00:28]}  Qxc5 {[%clk 0:01:24]} 15. Bxf6 {[%clk 0:00:11]}  Bxf6 {[%clk 0:01:23]} 16. Ne4 {[%clk 0:00:11]}  Qe7 {[%clk 0:01:21]} 17. Rae1 {[%clk 0:00:08]}  Bd7 {[%clk 0:01:08]} 18. Nxf6+ {[%clk 0:00:07]}  Qxf6 {[%clk 0:01:08]} 19. Qxb7 {[%clk 0:00:07]}  Rfd8 {[%clk 0:01:03]} 20. Re3 {[%clk 0:00:07]}  Rab8 {[%clk 0:00:56]} 21. Qxa7 {[%clk 0:00:07]}  Rxb2 {[%clk 0:00:56]} 22. Rf3 {[%clk 0:00:05]}  Qc3 {[%clk 0:00:47]} 23. Bxh7+ {[%clk 0:00:05]}  Kxh7 {[%clk 0:00:41]} 24. Rxc3 {[%clk 0:00:06]}  Bb5 {[%clk 0:00:36]} 25. Rh3+ {[%clk 0:00:07]}  Kg8 {[%clk 0:00:36]} 26. Re1 {[%clk 0:00:07]}  Be2 {[%clk 0:00:33]} 27. Re3 {[%clk 0:00:08]}  Bg4 {[%clk 0:00:30]} 28. h3 {[%clk 0:00:08]}  Bf5 {[%clk 0:00:30]} 29. Qe7 {[%clk 0:00:08]}  Rd2 {[%clk 0:00:28]} 30. Qe8+ {[%clk 0:00:07]}  Kh7 {[%clk 0:00:28]} 31. Qxf7 {[%clk 0:00:07]}  Rbxc2 {[%clk 0:00:29]} 32. Qh5+ {[%clk 0:00:07]}  Kg8 {[%clk 0:00:29]} 33. Rxe6 {[%clk 0:00:08]}  Bxe6 {[%clk 0:00:21]} 34. Rxe6 {[%clk 0:00:09]}  Rxf2 {[%clk 0:00:14]} 35. Re8+ {[%clk 0:00:08]}  Rf8 {[%clk 0:00:15]} 36. Qd5+ {[%clk 0:00:09]}  Kh7 {[%clk 0:00:13]} 37. Rxf8 {[%clk 0:00:10]} 1-0


[Site "https://www.chess.com"]

[Event "Titled Tuesday Blitz January 03 Late 2023"]
[White "Mitrovic, Darko R"]
[Black "Dzierzak, Radoslaw"]
[WhiteFideId "927023"]
[BlackFideId "1161407"]
[WhiteElo "2220"]
[BlackElo "2220"]
[Result "0-1"]
[Round "03"]
[TimeControl "180+2"]
[Date "2023.01.03"]
[WhiteClock "0:00:01"]
[BlackClock "0:00:26"]

1. d4 {[%clk 0:02:21]}  Nf6 {[%clk 0:02:58]} 2. Nf3 {[%clk 0:02:19]}  e6 {[%clk 0:02:57]} 3. g3 {[%clk 0:02:19]}  c5 {[%clk 0:02:54]} 4. Bg2 {[%clk 0:02:17]}  cxd4 {[%clk 0:02:53]} 5. Nxd4 {[%clk 0:02:16]}  d5 {[%clk 0:02:54]} 6. O-O {[%clk 0:02:12]}  e5 {[%clk 0:02:53]} 7. Nf3 {[%clk 0:01:52]}  Nc6 {[%clk 0:02:52]} 8. c4 {[%clk 0:01:43]}  d4 {[%clk 0:02:44]} 9. e3 {[%clk 0:01:27]}  Be7 {[%clk 0:02:39]} 10. exd4 {[%clk 0:01:27]}  exd4 {[%clk 0:02:40]} 11. b3 {[%clk 0:01:10]}  O-O {[%clk 0:02:25]} 12. Bb2 {[%clk 0:01:09]}  d3 {[%clk 0:02:19]} 13. Nc3 {[%clk 0:00:57]}  Bf5 {[%clk 0:01:54]} 14. Nd5 {[%clk 0:00:48]}  Nxd5 {[%clk 0:01:51]} 15. cxd5 {[%clk 0:00:47]}  Qxd5 {[%clk 0:01:46]} 16. Nd4 {[%clk 0:00:23]}  Qd7 {[%clk 0:01:32]} 17. Nxf5 {[%clk 0:00:18]}  Qxf5 {[%clk 0:01:32]} 18. Qf3 {[%clk 0:00:17]}  Qxf3 {[%clk 0:01:20]} 19. Bxf3 {[%clk 0:00:17]}  Rfd8 {[%clk 0:01:17]} 20. Rad1 {[%clk 0:00:15]}  Rac8 {[%clk 0:01:08]} 21. Be4 {[%clk 0:00:09]}  d2 {[%clk 0:01:00]} 22. Bc3 {[%clk 0:00:05]}  Bb4 {[%clk 0:00:48]} 23. Bxc6 {[%clk 0:00:01]}  Bxc3 {[%clk 0:00:46]} 24. Bxb7 {[%clk 0:00:02]}  Rc7 {[%clk 0:00:45]} 25. Bf3 {[%clk 0:00:02]}  Re7 {[%clk 0:00:43]} 26. Kg2 {[%clk 0:00:02]}  g6 {[%clk 0:00:33]} 27. Rb1 {[%clk 0:00:02]}  Kg7 {[%clk 0:00:31]} 28. Rfd1 {[%clk 0:00:02]}  Re1 {[%clk 0:00:30]} 29. b4 {[%clk 0:00:02]}  Rd4 {[%clk 0:00:26]} 30. b5 {[%clk 0:00:01]}  Ra4 {[%clk 0:00:26]} 0-1


[Site "https://www.chess.com"]

[Event "Titled Tuesday Blitz January 03 Late 2023"]
[White "Zampronha, Wladimir Camilo"]
[Black "Cruz Gomez, Miguel Angel"]
[WhiteFideId "2103087"]
[BlackFideId "5137160"]
[WhiteElo "2176"]
[BlackElo "1950"]
[Result "1-0"]
[Round "03"]
[TimeControl "180+2"]
[Date "2023.01.03"]
[WhiteClock "0:01:34"]
[BlackClock "0:02:02"]

1. e4 {[%clk 0:03:00]}  c5 {[%clk 0:02:59]} 2. Nf3 {[%clk 0:02:59]}  e6 {[%clk 0:02:59]} 3. d4 {[%clk 0:02:59]}  cxd4 {[%clk 0:03:00]} 4. Nxd4 {[%clk 0:02:59]}  Nc6 {[%clk 0:03:01]} 5. Nc3 {[%clk 0:02:59]}  Qc7 {[%clk 0:03:01]} 6. Be2 {[%clk 0:02:56]}  a6 {[%clk 0:03:02]} 7. O-O {[%clk 0:02:53]}  Nf6 {[%clk 0:03:02]} 8. Be3 {[%clk 0:02:52]}  b5 {[%clk 0:03:02]} 9. Nxc6 {[%clk 0:02:47]}  dxc6 {[%clk 0:03:03]} 10. e5 {[%clk 0:02:06]}  Nd5 {[%clk 0:03:02]} 11. Nxd5 {[%clk 0:02:00]}  cxd5 {[%clk 0:03:03]} 12. f4 {[%clk 0:01:59]}  Bc5 {[%clk 0:03:02]} 13. Bxc5 {[%clk 0:01:57]}  Qxc5+ {[%clk 0:03:03]} 14. Kh1 {[%clk 0:01:57]}  Bb7 {[%clk 0:03:03]} 15. Bd3 {[%clk 0:01:48]}  h5 {[%clk 0:03:03]} 16. a4 {[%clk 0:01:40]}  h4 {[%clk 0:02:52]} 17. h3 {[%clk 0:01:40]}  Kf8 {[%clk 0:02:15]} 18. Qe2 {[%clk 0:01:38]}  b4 {[%clk 0:02:13]} 19. f5 {[%clk 0:01:36]}  d4 {[%clk 0:02:09]} 20. fxe6 {[%clk 0:01:34]}  Qd5 {[%clk 0:02:02]} 1-0


[Site "https://www.chess.com"]

[Event "Titled Tuesday Blitz January 03 Late 2023"]
[White "Rian, Kapriaga"]
[Black "Amburgy, Ryan"]
[WhiteFideId "7103263"]
[BlackFideId "30924820"]
[WhiteElo "2089"]
[BlackElo "2246"]
[Result "0-1"]
[Round "03"]
[TimeControl "180+2"]
[Date "2023.01.03"]
[WhiteClock "0:00:01"]
[BlackClock "0:00:04"]

1. d4 {[%clk 0:02:59]}  Nf6 {[%clk 0:03:00]} 2. Nf3 {[%clk 0:02:58]}  b6 {[%clk 0:02:59]} 3. Bf4 {[%clk 0:02:57]}  Bb7 {[%clk 0:02:58]} 4. e3 {[%clk 0:02:58]}  Nh5 {[%clk 0:02:59]} 5. Bg5 {[%clk 0:02:57]}  h6 {[%clk 0:02:59]} 6. Bh4 {[%clk 0:02:57]}  g5 {[%clk 0:02:59]} 7. Bg3 {[%clk 0:02:55]}  d6 {[%clk 0:02:57]} 8. Nbd2 {[%clk 0:02:53]}  Bg7 {[%clk 0:02:55]} 9. Be2 {[%clk 0:02:52]}  c5 {[%clk 0:02:50]} 10. c3 {[%clk 0:02:51]}  Nd7 {[%clk 0:02:50]} 11. O-O {[%clk 0:02:47]}  Nxg3 {[%clk 0:02:50]} 12. hxg3 {[%clk 0:02:46]}  O-O {[%clk 0:02:49]} 13. a4 {[%clk 0:02:45]}  a6 {[%clk 0:02:49]} 14. Ne1 {[%clk 0:02:34]}  e5 {[%clk 0:02:44]} 15. dxe5 {[%clk 0:02:28]}  Nxe5 {[%clk 0:02:42]} 16. Nef3 {[%clk 0:02:23]}  Qe7 {[%clk 0:02:28]} 17. Nxe5 {[%clk 0:02:21]}  dxe5 {[%clk 0:02:27]} 18. Bc4 {[%clk 0:02:10]}  Rfd8 {[%clk 0:02:20]} 19. Qe2 {[%clk 0:02:09]}  Qd7 {[%clk 0:01:55]} 20. Rfd1 {[%clk 0:02:01]}  Qc6 {[%clk 0:01:35]} 21. e4 {[%clk 0:02:00]}  Qe8 {[%clk 0:01:31]} 22. Nf1 {[%clk 0:01:50]}  Kh8 {[%clk 0:01:20]} 23. Bd5 {[%clk 0:01:48]}  Bxd5 {[%clk 0:01:16]} 24. Rxd5 {[%clk 0:01:45]}  Rxd5 {[%clk 0:01:15]} 25. exd5 {[%clk 0:01:45]}  Qd7 {[%clk 0:01:12]} 26. Ne3 {[%clk 0:01:37]}  f5 {[%clk 0:01:10]} 27. g4 {[%clk 0:01:16]}  f4 {[%clk 0:01:01]} 28. Nf5 {[%clk 0:01:14]}  Qxd5 {[%clk 0:00:27]} 29. Rd1 {[%clk 0:01:12]}  Qf7 {[%clk 0:00:27]} 30. Qe4 {[%clk 0:01:06]}  Rb8 {[%clk 0:00:27]} 31. Qc6 {[%clk 0:01:03]}  Qe8 {[%clk 0:00:22]} 32. Qc7 {[%clk 0:00:49]}  Bf6 {[%clk 0:00:13]} 33. Rd7 {[%clk 0:00:47]}  Qg8 {[%clk 0:00:06]} 34. Nxh6 {[%clk 0:00:42]}  Rc8 {[%clk 0:00:07]} 35. Qd6 {[%clk 0:00:21]}  Qg6 {[%clk 0:00:07]} 36. Nf5 {[%clk 0:00:16]}  Rg8 {[%clk 0:00:04]} 37. Qc7 {[%clk 0:00:13]}  e4 {[%clk 0:00:04]} 38. Rd6 {[%clk 0:00:08]}  Rf8 {[%clk 0:00:03]} 39. Qc6 {[%clk 0:00:06]}  e3 {[%clk 0:00:04]} 40. fxe3 {[%clk 0:00:06]}  fxe3 {[%clk 0:00:05]} 41. Nxe3 {[%clk 0:00:05]}  Qb1+ {[%clk 0:00:04]} 42. Kh2 {[%clk 0:00:05]}  Qh7+ {[%clk 0:00:05]} 43. Kg1 {[%clk 0:00:03]}  Qb1+ {[%clk 0:00:05]} 44. Nf1 {[%clk 0:00:03]}  Bg7 {[%clk 0:00:04]} 45. Rh6+ {[%clk 0:00:03]}  Bxh6 {[%clk 0:00:02]} 46. Qxh6+ {[%clk 0:00:04]}  Kg8 {[%clk 0:00:02]} 47. Qxg5+ {[%clk 0:00:04]}  Kf7 {[%clk 0:00:02]} 48. Qd5+ {[%clk 0:00:04]}  Ke7 {[%clk 0:00:03]} 49. Qe5+ {[%clk 0:00:04]}  Kd7 {[%clk 0:00:03]} 50. Qd5+ {[%clk 0:00:04]}  Ke7 {[%clk 0:00:04]} 51. Qe5+ {[%clk 0:00:04]}  Kf7 {[%clk 0:00:05]} 52. Qf4+ {[%clk 0:00:03]}  Kg6 {[%clk 0:00:04]} 53. Qd6+ {[%clk 0:00:03]}  Rf6 {[%clk 0:00:04]} 54. Qd3+ {[%clk 0:00:01]}  Qxd3 {[%clk 0:00:04]} 0-1


[Site "https://www.chess.com"]

[Event "Titled Tuesday Blitz January 03 Late 2023"]
[White "Alexikov, Alexander"]
[Black "Boyer, Mahel"]
[WhiteFideId "14103958"]
[BlackFideId "45102422"]
[WhiteElo "2209"]
[BlackElo "2489"]
[Result "0-1"]
[Round "03"]
[TimeControl "180+2"]
[Date "2023.01.03"]
[WhiteClock "0:00:09"]
[BlackClock "0:00:18"]

1. e4 {[%clk 0:03:00]}  c6 {[%clk 0:02:40]} 2. d4 {[%clk 0:02:59]}  d5 {[%clk 0:02:41]} 3. Nc3 {[%clk 0:02:58]}  dxe4 {[%clk 0:02:37]} 4. Nxe4 {[%clk 0:02:58]}  Bf5 {[%clk 0:02:31]} 5. Ng3 {[%clk 0:02:58]}  Bg6 {[%clk 0:02:30]} 6. Nf3 {[%clk 0:02:58]}  Nd7 {[%clk 0:02:30]} 7. Bc4 {[%clk 0:02:57]}  e6 {[%clk 0:02:30]} 8. O-O {[%clk 0:02:56]}  Bd6 {[%clk 0:02:29]} 9. Re1 {[%clk 0:02:55]}  Ne7 {[%clk 0:02:29]} 10. c3 {[%clk 0:02:55]}  O-O {[%clk 0:02:27]} 11. a4 {[%clk 0:02:52]}  Nd5 {[%clk 0:02:26]} 12. Ne4 {[%clk 0:02:50]}  Bc7 {[%clk 0:02:24]} 13. Bg5 {[%clk 0:02:46]}  f6 {[%clk 0:02:09]} 14. Bh4 {[%clk 0:02:34]}  Qe7 {[%clk 0:02:09]} 15. a5 {[%clk 0:02:24]}  Rae8 {[%clk 0:01:56]} 16. Qb3 {[%clk 0:02:21]}  b5 {[%clk 0:01:55]} 17. axb6 {[%clk 0:02:19]}  N7xb6 {[%clk 0:01:55]} 18. Bf1 {[%clk 0:02:17]}  Bh5 {[%clk 0:01:47]} 19. Nfd2 {[%clk 0:02:07]}  Rb8 {[%clk 0:01:28]} 20. Qa2 {[%clk 0:02:02]}  a5 {[%clk 0:01:20]} 21. Nc5 {[%clk 0:01:58]}  Bf7 {[%clk 0:01:20]} 22. Na6 {[%clk 0:01:56]}  Ra8 {[%clk 0:01:20]} 23. Nxc7 {[%clk 0:01:55]}  Qxc7 {[%clk 0:01:20]} 24. Ne4 {[%clk 0:01:50]}  e5 {[%clk 0:01:18]} 25. Bg3 {[%clk 0:01:47]}  Nxc3 {[%clk 0:01:17]} 26. Qa3 {[%clk 0:01:40]}  Nb5 {[%clk 0:00:50]} 27. Qd3 {[%clk 0:00:50]}  Rfd8 {[%clk 0:00:45]} 28. Rac1 {[%clk 0:00:42]}  Nxd4 {[%clk 0:00:43]} 29. Qc3 {[%clk 0:00:38]}  Qe7 {[%clk 0:00:28]} 30. Nc5 {[%clk 0:00:32]}  Nd5 {[%clk 0:00:22]} 31. Qa3 {[%clk 0:00:30]}  Nb4 {[%clk 0:00:22]} 32. Qa4 {[%clk 0:00:22]}  Bd5 {[%clk 0:00:18]} 33. f3 {[%clk 0:00:09]}  Qf7 {[%clk 0:00:18]} 0-1


[Site "https://www.chess.com"]

[Event "Titled Tuesday Blitz January 03 Late 2023"]
[White "Yurovskykh, Oleksandr"]
[Black "Dylag, Emilia"]
[WhiteFideId "14134020"]
[BlackFideId "21805172"]
[WhiteElo "2328"]
[BlackElo "2095"]
[Result "1-0"]
[Round "03"]
[TimeControl "180+2"]
[Date "2023.01.03"]
[WhiteClock "0:00:54"]
[BlackClock "0:00:26"]

1. d4 {[%clk 0:03:00]}  Nf6 {[%clk 0:02:53]} 2. Nf3 {[%clk 0:03:00]}  e6 {[%clk 0:02:52]} 3. Bf4 {[%clk 0:03:00]}  d5 {[%clk 0:02:50]} 4. e3 {[%clk 0:03:00]}  c5 {[%clk 0:02:47]} 5. c3 {[%clk 0:03:00]}  Bd6 {[%clk 0:02:45]} 6. Bg3 {[%clk 0:03:00]}  O-O {[%clk 0:02:41]} 7. Nbd2 {[%clk 0:03:00]}  Qc7 {[%clk 0:02:32]} 8. dxc5 {[%clk 0:03:00]}  Qxc5 {[%clk 0:02:30]} 9. Bd3 {[%clk 0:02:59]}  Bxg3 {[%clk 0:02:24]} 10. hxg3 {[%clk 0:02:57]}  Nc6 {[%clk 0:02:25]} 11. g4 {[%clk 0:02:44]}  e5 {[%clk 0:01:41]} 12. g5 {[%clk 0:02:41]}  e4 {[%clk 0:01:35]} 13. gxf6 {[%clk 0:02:40]}  exd3 {[%clk 0:01:34]} 14. fxg7 {[%clk 0:02:39]}  Re8 {[%clk 0:01:30]} 15. Nb3 {[%clk 0:02:17]}  Qc4 {[%clk 0:01:23]} 16. Rh4 {[%clk 0:02:14]}  Re4 {[%clk 0:01:12]} 17. Rh2 {[%clk 0:01:23]}  Bg4 {[%clk 0:01:06]} 18. Kd2 {[%clk 0:01:16]}  a5 {[%clk 0:00:55]} 19. Qh1 {[%clk 0:01:03]}  h5 {[%clk 0:00:50]} 20. Rxh5 {[%clk 0:00:57]}  Bxh5 {[%clk 0:00:45]} 21. Qxh5 {[%clk 0:00:58]}  Kxg7 {[%clk 0:00:45]} 22. Qg5+ {[%clk 0:00:58]}  Kf8 {[%clk 0:00:44]} 23. Rh1 {[%clk 0:00:59]}  Ke8 {[%clk 0:00:33]} 24. Rh8+ {[%clk 0:00:58]}  Kd7 {[%clk 0:00:32]} 25. Rxa8 {[%clk 0:00:58]}  a4 {[%clk 0:00:26]} 26. Rxa4 {[%clk 0:00:54]} 1-0


[Site "https://www.chess.com"]

[Event "Titled Tuesday Blitz January 03 Late 2023"]
[White "Lock, Gavin R"]
[Black "Sukandar, Irine Kharisma"]
[WhiteFideId "408646"]
[BlackFideId "7101937"]
[WhiteElo "2083"]
[BlackElo "2390"]
[Result "0-1"]
[Round "03"]
[TimeControl "180+2"]
[Date "2023.01.03"]
[WhiteClock "0:00:05"]
[BlackClock "0:01:21"]

1. d4 {[%clk 0:03:00]}  Nf6 {[%clk 0:02:59]} 2. Bf4 {[%clk 0:02:59]}  e6 {[%clk 0:02:54]} 3. e3 {[%clk 0:02:59]}  Be7 {[%clk 0:02:53]} 4. h3 {[%clk 0:02:51]}  d6 {[%clk 0:02:48]} 5. Nf3 {[%clk 0:02:51]}  b6 {[%clk 0:02:48]} 6. Be2 {[%clk 0:02:50]}  Bb7 {[%clk 0:02:48]} 7. c4 {[%clk 0:02:45]}  O-O {[%clk 0:02:47]} 8. Nc3 {[%clk 0:02:43]}  c5 {[%clk 0:02:47]} 9. O-O {[%clk 0:02:41]}  a6 {[%clk 0:02:46]} 10. a4 {[%clk 0:02:35]}  Nbd7 {[%clk 0:02:46]} 11. d5 {[%clk 0:02:30]}  e5 {[%clk 0:02:42]} 12. Bh2 {[%clk 0:02:28]}  Re8 {[%clk 0:02:34]} 13. Nd2 {[%clk 0:02:28]}  Bf8 {[%clk 0:02:33]} 14. Qc2 {[%clk 0:02:26]}  g6 {[%clk 0:02:32]} 15. Rab1 {[%clk 0:02:23]}  Bg7 {[%clk 0:02:31]} 16. e4 {[%clk 0:02:15]}  h6 {[%clk 0:02:25]} 17. Bg3 {[%clk 0:01:46]}  Nh7 {[%clk 0:02:23]} 18. b4 {[%clk 0:01:35]}  cxb4 {[%clk 0:02:23]} 19. Rxb4 {[%clk 0:01:35]}  Nhf8 {[%clk 0:02:04]} 20. a5 {[%clk 0:01:27]}  Bc8 {[%clk 0:02:04]} 21. axb6 {[%clk 0:01:23]}  Nxb6 {[%clk 0:02:04]} 22. Ra1 {[%clk 0:01:15]}  Nfd7 {[%clk 0:02:02]} 23. f3 {[%clk 0:01:02]}  Nc5 {[%clk 0:02:02]} 24. Bf2 {[%clk 0:01:01]}  Nbd7 {[%clk 0:02:02]} 25. Na4 {[%clk 0:00:57]}  Qc7 {[%clk 0:01:54]} 26. Nxc5 {[%clk 0:00:55]}  Nxc5 {[%clk 0:01:54]} 27. Nb3 {[%clk 0:00:40]}  Nxb3 {[%clk 0:01:45]} 28. Qxb3 {[%clk 0:00:40]}  f5 {[%clk 0:01:39]} 29. Rb6 {[%clk 0:00:31]}  Rf8 {[%clk 0:01:33]} 30. c5 {[%clk 0:00:27]}  fxe4 {[%clk 0:01:30]} 31. cxd6 {[%clk 0:00:08]}  Qf7 {[%clk 0:01:30]} 32. Rc1 {[%clk 0:00:06]}  exf3 {[%clk 0:01:29]} 33. gxf3 {[%clk 0:00:06]}  Bxh3 {[%clk 0:01:26]} 34. Rc7 {[%clk 0:00:06]}  Qf5 {[%clk 0:01:21]} 35. Rbb7 {[%clk 0:00:05]}  Qg5+ {[%clk 0:01:21]} 0-1


[Site "https://www.chess.com"]

[Event "Titled Tuesday Blitz January 03 Late 2023"]
[White "Winterberg, Lukas"]
[Black "Slavin, Alexey"]
[WhiteFideId "24622702"]
[BlackFideId "24104388"]
[WhiteElo "2402"]
[BlackElo "2364"]
[Result "1/2-1/2"]
[Round "03"]
[TimeControl "180+2"]
[Date "2023.01.03"]
[WhiteClock "0:00:27"]
[BlackClock "0:00:21"]

1. e4 {[%clk 0:03:00]}  Nc6 {[%clk 0:02:58]} 2. Nf3 {[%clk 0:02:59]}  d6 {[%clk 0:02:58]} 3. d4 {[%clk 0:02:58]}  Nf6 {[%clk 0:02:49]} 4. Nc3 {[%clk 0:02:45]}  Bg4 {[%clk 0:02:46]} 5. Be3 {[%clk 0:02:43]}  a6 {[%clk 0:02:44]} 6. Be2 {[%clk 0:02:42]}  e5 {[%clk 0:02:42]} 7. dxe5 {[%clk 0:02:40]}  dxe5 {[%clk 0:02:39]} 8. h3 {[%clk 0:02:37]}  Bh5 {[%clk 0:02:37]} 9. Nd2 {[%clk 0:02:32]}  Bg6 {[%clk 0:02:33]} 10. O-O {[%clk 0:02:29]}  Bb4 {[%clk 0:02:31]} 11. f3 {[%clk 0:02:26]}  O-O {[%clk 0:02:28]} 12. Bd3 {[%clk 0:02:21]}  Nh5 {[%clk 0:02:18]} 13. Nb3 {[%clk 0:01:52]}  Nf4 {[%clk 0:02:00]} 14. Ne2 {[%clk 0:01:42]}  Nxd3 {[%clk 0:01:56]} 15. Qxd3 {[%clk 0:01:39]}  Qe7 {[%clk 0:01:49]} 16. c3 {[%clk 0:01:36]}  Rad8 {[%clk 0:01:45]} 17. Qc2 {[%clk 0:01:36]}  Bd6 {[%clk 0:01:44]} 18. Rad1 {[%clk 0:01:31]}  f5 {[%clk 0:01:39]} 19. exf5 {[%clk 0:01:17]}  Bxf5 {[%clk 0:01:37]} 20. Qc1 {[%clk 0:01:17]}  h6 {[%clk 0:01:25]} 21. Ng3 {[%clk 0:01:15]}  Bg6 {[%clk 0:01:22]} 22. Ne4 {[%clk 0:01:13]}  Bxe4 {[%clk 0:01:15]} 23. fxe4 {[%clk 0:01:14]}  b6 {[%clk 0:01:12]} 24. Rxf8+ {[%clk 0:01:06]}  Rxf8 {[%clk 0:01:10]} 25. Rf1 {[%clk 0:01:07]}  a5 {[%clk 0:01:06]} 26. Rxf8+ {[%clk 0:00:55]}  Qxf8 {[%clk 0:01:05]} 27. Qf1 {[%clk 0:00:56]}  Qxf1+ {[%clk 0:00:55]} 28. Kxf1 {[%clk 0:00:57]}  a4 {[%clk 0:00:53]} 29. Nd2 {[%clk 0:00:56]}  Na5 {[%clk 0:00:54]} 30. Ke2 {[%clk 0:00:56]}  Kf7 {[%clk 0:00:52]} 31. Kd3 {[%clk 0:00:55]}  Ke6 {[%clk 0:00:50]} 32. Nc4 {[%clk 0:00:56]}  Nb7 {[%clk 0:00:46]} 33. b4 {[%clk 0:00:46]}  axb3 {[%clk 0:00:44]} 34. axb3 {[%clk 0:00:47]}  Bc5 {[%clk 0:00:44]} 35. Bd2 {[%clk 0:00:44]}  Bg1 {[%clk 0:00:42]} 36. b4 {[%clk 0:00:44]}  Nd6 {[%clk 0:00:40]} 37. Nxd6 {[%clk 0:00:40]}  Kxd6 {[%clk 0:00:39]} 38. c4 {[%clk 0:00:40]}  c6 {[%clk 0:00:36]} 39. Bc1 {[%clk 0:00:39]}  b5 {[%clk 0:00:35]} 40. c5+ {[%clk 0:00:34]}  Ke6 {[%clk 0:00:35]} 41. Be3 {[%clk 0:00:35]}  Bxe3 {[%clk 0:00:31]} 42. Kxe3 {[%clk 0:00:36]}  Kf6 {[%clk 0:00:29]} 43. Kf3 {[%clk 0:00:37]}  g6 {[%clk 0:00:28]} 44. Kg4 {[%clk 0:00:37]}  Kg7 {[%clk 0:00:26]} 45. Kh4 {[%clk 0:00:37]}  Kf6 {[%clk 0:00:26]} 46. g4 {[%clk 0:00:32]}  Kg7 {[%clk 0:00:24]} 47. g5 {[%clk 0:00:30]}  h5 {[%clk 0:00:21]} 48. Kg3 {[%clk 0:00:27]} 1/2-1/2


[Site "https://www.chess.com"]

[Event "Titled Tuesday Blitz January 03 Late 2023"]
[White "Jenkins, Drake"]
[Black "Fisher_TheGalactic"]
[WhiteFideId "2022397"]
[WhiteElo "2130"]
[BlackElo "2492"]
[Result "0-1"]
[Round "03"]
[TimeControl "180+2"]
[Date "2023.01.03"]
[WhiteClock "0:00:24"]
[BlackClock "0:02:01"]

1. Nf3 {[%clk 0:03:00]}  b6 {[%clk 0:03:00]} 2. g3 {[%clk 0:03:00]}  Bb7 {[%clk 0:03:00]} 3. Bg2 {[%clk 0:03:01]}  e6 {[%clk 0:03:00]} 4. c4 {[%clk 0:03:01]}  d5 {[%clk 0:03:01]} 5. cxd5 {[%clk 0:02:58]}  exd5 {[%clk 0:03:02]} 6. d4 {[%clk 0:02:57]}  Nf6 {[%clk 0:03:02]} 7. O-O {[%clk 0:02:57]}  Be7 {[%clk 0:03:01]} 8. Nc3 {[%clk 0:02:53]}  O-O {[%clk 0:03:01]} 9. Bf4 {[%clk 0:02:53]}  c6 {[%clk 0:03:00]} 10. Rc1 {[%clk 0:02:50]}  Nbd7 {[%clk 0:02:58]} 11. Qd3 {[%clk 0:02:34]}  Re8 {[%clk 0:02:56]} 12. Ne5 {[%clk 0:02:30]}  Rc8 {[%clk 0:02:52]} 13. Rfe1 {[%clk 0:02:26]}  c5 {[%clk 0:02:49]} 14. e4 {[%clk 0:02:16]}  dxe4 {[%clk 0:02:48]} 15. Nxe4 {[%clk 0:02:15]}  Nxe4 {[%clk 0:02:46]} 16. Bxe4 {[%clk 0:02:09]}  Bxe4 {[%clk 0:02:47]} 17. Qxe4 {[%clk 0:01:59]}  Nf6 {[%clk 0:02:46]} 18. Qb7 {[%clk 0:01:45]}  Rc7 {[%clk 0:02:24]} 19. Qa6 {[%clk 0:01:44]}  Nd5 {[%clk 0:02:14]} 20. Nxf7 {[%clk 0:01:20]}  Kxf7 {[%clk 0:02:13]} 21. Bxc7 {[%clk 0:01:16]}  Nxc7 {[%clk 0:02:14]} 22. Qxa7 {[%clk 0:01:00]}  Nb5 {[%clk 0:02:07]} 23. Qa4 {[%clk 0:00:46]}  Nxd4 {[%clk 0:02:06]} 24. Qc4+ {[%clk 0:00:46]}  Kf8 {[%clk 0:02:04]} 25. Re4 {[%clk 0:00:34]}  Bf6 {[%clk 0:02:02]} 26. Rce1 {[%clk 0:00:30]}  Nf3+ {[%clk 0:02:01]} 27. Kf1 {[%clk 0:00:24]}  Nd2+ {[%clk 0:02:01]} 0-1


[Site "https://www.chess.com"]